[Event "FIDE WCCC Open-08 2024"]
[Site "Montesilvano"]
[Date "2024.11.25"]
[Round "10.1"]
[White "Li, Aiden Linyuan"]
[Black "Guo, Philipp Ziming"]
[Result "0-1"]
[Annotator "RC"]
[ECO "B39"]
[WhiteElo "1877"]
[BlackElo "2139"]
[PlyCount "94"]
[EventDate "2024.11.18"]
[EventType "swiss"]
[EventCountry "ITA"]
[SourceTitle "playchess.com"]
[Source "ChessBase"]
[SourceQuality "1"]
[TimeControl "5400+30"]

1. e4 {[%emt 0:00:01]} c5 {[%emt 0:00:03]} 2. Nf3 {[%emt 0:00:06]} Nc6 {[%emt 0:00:04]} 3. d4 {[%emt 0:00:04]} cxd4 {[%emt 0:00:04]} 4. Nxd4 {[%emt 0:00:04]} g6 {[%emt 0:00:03]} 5. c4 {[%emt 0:00:08]} Bg7 {[%emt 0:00:04]} 6. Be3 {[%emt 0:00:05]} Nf6 {[%emt 0:00:06]} 7. Nc3 {[%emt 0:00:04]} Ng4 {[%emt 0:00:07]} 8. Qxg4 {[%emt 0:00:07]} Nxd4 {[%emt 0:00:05]} 9. Qd1 {[%emt 0:00:08]} Ne6 {[%emt 0:01:02]} 10. Qd2 {[%emt 0:00:13]} d6 {[%emt 0:00:15]} 11. Be2 {[%emt 0:00:25]} b6 {[%emt 0:00:07]} 12. O-O {[%emt 0:00:13]} O-O {[%emt 0:00:07]} 13. f4 {[%emt 0:01:02]} Bb7 {[%emt 0:00:03]} 14. Bf3 {[%emt 0:06:00]} Nc5 {[%emt 0:01:39]} 15. Bd4 {[%emt 0:03:55]} e5 {[%emt 0:04:00]} 16. Be3 {[%emt 0:01:18]} f5 {[%emt 0:00:33]} 17. exf5 {[%emt 0:01:42]} e4 {[%emt 0:00:22]} 18. f6 {[%emt 0:02:06]} Qxf6 {[%emt 0:03:01]} 19. Be2 {[%emt 0:03:25]} Rad8 {[%emt 0:02:30]} 20. Rad1 {[%emt 0:01:15]} h6 {[%emt 0:09:19]} 21. Qc2 {[%emt 0:03:55]} a5 {[%emt 0:09:07]} 22. a3 {[%emt 0:06:11]} Bc6 {[%emt 0:06:24]} 23. Bd4 {[%emt 0:02:00]} Qf7 {[%emt 0:00:41]} 24. Bxg7 {[%emt 0:00:57]} Qxg7 {[%emt 0:01:05]} 25. b4 {[%emt 0:00:20]} axb4 {[%emt 0:00:16]} 26. axb4 {[%emt 0:00:07]} Ne6 {[%emt 0:00:04]} 27. c5 {[%emt 0:11:20]} Nxf4 {[%emt 0:12:41]} 28. Bc4+ {[%emt 0:02:36]} d5 {[%emt 0:01:01]} 29. Qxe4 {[%emt 0:02:21]} dxc4 {[%emt 0:50:07]} 30. Qxc4+ {[%emt 0:00:09]} Kh7 {[%emt 0:00:00]} 31. Rxd8 {[%emt 0:00:33]} Qxc3 {[%emt 0:00:00]} 32. Qa2 {[%emt 0:06:42]} Nh3+ {[%emt 0:00:00]} 33. gxh3 {[%emt 0:00:24]} Qe3+ {[%emt 0:00:00]} 34. Qf2 {[%emt 0:00:34]} Rxf2 {[%emt 0:00:00]} 35. Rxf2 {[%emt 0:00:56]} Qg5+ {[%emt 0:00:00]} 36. Kf1 {[%emt 0:00:29]} Qxd8 {[%emt 0:00:00]} 37. Ke1 {[%emt 0:00:08]} bxc5 {[%emt 0:00:00]} 38. bxc5 {[%emt 0:00:07]} Qa5+ {[%emt 0:00:00]} 39. Kf1 {[%emt 0:00:07]} Qxc5 {[%emt 0:00:00]} 40. Rf7+ {[%emt 0:00:40]} Kg8 {[%emt 0:00:00]} 41. Rf2 {[%emt 0:00:05]} Bb5+ {[%emt 0:00:00]} 42. Kg2 {[%emt 0:00:48]} Qd5+ {[%emt 0:00:00]} 43. Kg3 {[%emt 0:00:37]} Bc6 {[%emt 0:00:00]} 44. h4 {[%emt 0:00:50]} Qd3+ {[%emt 0:00:00]} 45. Kg4 {[%emt 0:00:17]} Qe4+ {[%emt 0:00:00]} 46. Kg3 {[%emt 0:00:19]} Qe3+ {[%emt 0:00:00]} 47. Kg4 {[%emt 0:00:14]} h5# {[%emt 0:00:00]} 0-1

[Event "FIDE WCCC Open-08 2024"]
[Site "Montesilvano"]
[Date "2024.11.25"]
[Round "10.2"]
[White "Morozevich, Kirill Aleks"]
[Black "Sattwik Swain"]
[Result "0-1"]
[Annotator "NA RC"]
[ECO "D37"]
[WhiteElo "1484"]
[BlackElo "1787"]
[PlyCount "202"]
[EventDate "2024.11.18"]
[EventType "swiss"]
[EventCountry "ITA"]
[SourceTitle "playchess.com"]
[Source "ChessBase"]
[SourceQuality "1"]
[TimeControl "5400+30"]

1. d4 {[%emt 0:00:01]} Nf6 {[%emt 0:00:20]} 2. c4 {[%emt 0:00:09]} e6 {[%emt 0:00:18]} 3. Nf3 {[%emt 0:00:07]} d5 {[%emt 0:00:08]} 4. Nc3 {[%emt 0:00:04]} Be7 {[%emt 0:00:21]} 5. Bf4 {[%emt 0:00:27]} O-O {[%emt 0:01:09]} 6. e3 {[%emt 0:00:04]} b6 {[%emt 0:00:36]} 7. cxd5 {[%emt 0:00:11]} exd5 {[%emt 0:00:20]} 8. Be2 {[%emt 0:02:34]} Bb7 {[%emt 0:00:41]} 9. O-O {[%emt 0:00:17]} c5 {[%emt 0:01:35]} 10. h3 {[%emt 0:01:12]} Nc6 {[%emt 0:02:55]} 11. Rc1 {[%emt 0:00:17]} Rc8 {[%emt 0:04:31]} 12. a3 {[%emt 0:02:59]} a6 {[%emt 0:05:11]} 13. Bd3 {[%emt 0:02:04]} c4 {[%emt 0:08:55]} 14. Bf5 {[%emt 0:00:32]} Ra8 {[%emt 0:00:11]} 15. e4 {[%emt 0:07:56]} dxe4 {[%emt 0:06:01]} 16. Nxe4 {[%emt 0:00:15]} Qd5 {[%emt 0:02:23]} 17. Ng3 {[%emt 0:04:20]} Rad8 {[%emt 0:05:09]} 18. Bc7 {[%emt 0:04:17]} Rde8 {[%emt 0:00:13]} 19. Bxb6 {[%emt 0:02:04]} Bd6 {[%emt 0:01:49]} 20. Qc2 {[%emt 0:02:12]} g6 {[%emt 0:01:10]} 21. Qd2 {[%emt 0:04:42]} Bxg3 {[%emt 0:07:47]} 22. fxg3 {[%emt 0:00:11]} Qxf5 {[%emt 0:00:20]} 23. Ng5 {[%emt 0:01:31]} Ne4 {[%emt 0:00:36]} 24. Nxe4 {[%emt 0:00:16]} Qxe4 {[%emt 0:00:08]} 25. Bc5 {[%emt 0:00:10]} Qd5 {[%emt 0:04:19]} 26. Bxf8 {[%emt 0:00:38]} Rxf8 {[%emt 0:00:08]} 27. Rf4 {[%emt 0:00:25]} Re8 {[%emt 0:09:05]} 28. Rcf1 {[%emt 0:00:37]} Re7 {[%emt 0:01:45]} 29. R1f2 {[%emt 0:01:35]} a5 {[%emt 0:23:07]} 30. Rh4 {[%emt 0:02:35]} Re4 {[%emt 0:05:29]} 31. Rxe4 {[%emt 0:06:09]} Qxe4 {[%emt 0:00:15]} 32. d5 {[%emt 0:00:44]} Ne5 {[%emt 0:03:51]} 33. Re2 {[%emt 0:05:16]} Qd3 {[%emt 0:01:04]} 34. d6 {[%emt 0:01:16]} f6 {[%emt 0:01:51]} 35. Rf2 {[%emt 0:03:19]} Qxd2 {[%emt 0:01:26]} 36. Rxd2 {[%emt 0:00:06]} Bc6 {[%emt 0:00:03]} 37. Kf2 {[%emt 0:01:16]} Kf7 {[%emt 0:00:07]} 38. d7 {[%emt 0:02:56]} Bxd7 {[%emt 0:00:58]} 39. Rd5 {[%emt 0:00:46]} a4 {[%emt 0:01:12]} 40. Ke3 {[%emt 0:01:31]} Ke6 {[%emt 0:00:36]} 41. Ra5 {[%emt 0:00:30]} Kd6 {[%emt 0:01:17]} 42. Ra6+ {[%emt 0:00:17]} Bc6 {[%emt 0:00:48]} 43. Kd4 {[%emt 0:00:21]} h5 {[%emt 0:00:24]} 44. h4 {[%emt 0:00:47]} Kc7 {[%emt 0:01:05]} 45. Ra7+ {[%emt 0:00:17]} Kb6 {[%emt 0:01:23]} 46. Re7 {[%emt 0:00:20]} Kb5 {[%emt 0:00:00]} 47. Re6 {[%emt 0:00:32]} Nd7 {[%emt 0:00:00]} 48. Rd6 {[%emt 0:00:23]} Kb6 {[%emt 0:00:34]} 49. Kxc4 {[%emt 0:00:30]} Kc7 {[%emt 0:00:15]} 50. Rd2 {[%emt 0:00:11]} f5 {[%emt 0:01:01]} 51. Kd4 {[%emt 0:00:17]} Nf6 {[%emt 0:00:38]} 52. Ke5 {[%emt 0:00:25]} Ne4 {[%emt 0:00:10]} 53. Rd3 {[%emt 0:00:28]} Bb5 {[%emt 0:00:39]} 54. Re3 {[%emt 0:00:43]} Bc4 {[%emt 0:00:06]} 55. Re1 {[%emt 0:01:23]} Kc6 {[%emt 0:00:48]} 56. Kd4 {[%emt 0:00:23]} Bf7 {[%emt 0:00:43]} 57. Ke5 {[%emt 0:00:40]} Kd7 {[%emt 0:00:27]} 58. Re3 {[%emt 0:00:45]} Ke7 {[%emt 0:00:18]} 59. Kf4 {[%emt 0:01:08]} Kf6 {[%emt 0:00:18]} 60. Rd3 {[%emt 0:00:19]} Nc5 {[%emt 0:00:48]} 61. Rd6+ {[%emt 0:00:22]} Be6 {[%emt 0:00:25]} 62. Rd8 {[%emt 0:00:45]} Ke7 {[%emt 0:00:14]} 63. Rd2 {[%emt 0:01:22]} Bb3 {[%emt 0:00:32]} 64. Re2+ {[%emt 0:01:03]} Kf6 {[%emt 0:00:17]} 65. Rd2 {[%emt 0:00:20]} Ne6+ {[%emt 0:00:26]} 66. Ke3 {[%emt 0:00:08]} Ke5 {[%emt 0:00:07]} 67. Rd7 {[%emt 0:00:29]} f4+ {[%emt 0:00:43]} 68. gxf4+ {[%emt 0:00:22]} Nxf4 {[%emt 0:00:07]} 69. g3 {[%emt 0:00:15]} Nd5+ {[%emt 0:00:11]} 70. Kd3 {[%emt 0:00:09]} Kf5 {[%emt 0:00:16]} 71. Rd6 {[%emt 0:00:20]} Nf6 {[%emt 0:00:48]} 72. Rb6 {[%emt 0:01:12]} Nd5 {[%emt 0:00:30]} 73. Rd6 {[%emt 0:00:21]} Ne7 {[%emt 0:00:16]} 74. Ke3 {[%emt 0:01:14]} Kg4 {[%emt 0:00:27]} 75. Kf2 {[%emt 0:00:06]} Kf5 {[%emt 0:01:27]} 76. Kf3 {[%emt 0:00:53]} Nc6 {[%emt 0:00:09]} 77. Kf2 {[%emt 0:02:46]} Ne5 {[%emt 0:00:12]} 78. Rd2 {[%emt 0:01:35]} Nc4 {[%emt 0:00:08]} 79. Re2 {[%emt 0:00:59]} Bd1 {[%emt 0:00:04]} 80. Re1 {[%emt 0:00:15]} Nxb2 {[%emt 0:00:04]} 81. Ke3 {[%emt 0:00:08]} Bb3 {[%emt 0:00:06]} 82. Kd4 {[%emt 0:00:16]} Nc4 {[%emt 0:00:05]} 83. Rf1+ {[%emt 0:00:29]} Kg4 {[%emt 0:00:55]} 84. Rg1 {[%emt 0:00:33]} Nxa3 {[%emt 0:00:05]} 85. Kc3 {[%emt 0:00:09]} Nb5+ {[%emt 0:00:12]} 86. Kb4 {[%emt 0:00:05]} Nd4 {[%emt 0:00:04]} 87. Rg2 {[%emt 0:00:33]} Nf5 {[%emt 0:00:14]} 88. Ka3 {[%emt 0:00:17]} Nxg3 {[%emt 0:00:21]} 89. Rh2 {[%emt 0:00:06]} Ne4 {[%emt 0:00:46]} 90. Rg2+ {[%emt 0:00:10]} Kf5 {[%emt 0:00:17]} 91. Kb4 {[%emt 0:00:07]} Nd6 {[%emt 0:00:38]} 92. Rg5+ {[%emt 0:00:14]} Kf6 {[%emt 0:05:39]} 93. Rg1 {[%emt 0:00:11]} Nf5 {[%emt 0:00:00]} 94. Rh1 {[%emt 0:00:17]} Ke5 {[%emt 0:00:00]} 95. Re1+ {[%emt 0:00:06]} Kf4 {[%emt 0:00:00]} 96. Rf1+ {[%emt 0:00:07]} Ke3 {[%emt 0:00:00]} 97. Rh1 {[%emt 0:00:10]} Kf2 {[%emt 0:00:00]} 98. Rh2+ {[%emt 0:00:14]} Kg3 {[%emt 0:00:00]} 99. Rh1 {[%emt 0:00:06]} Nxh4 {[%emt 0:00:00]} 100. Rg1+ {[%emt 0:00:06]} Ng2 {[%emt 0:00:00]} 101. Rxg2+ {[%emt 0:00:11]} Kxg2 {[%emt 0:00:00]} 0-1

[Event "FIDE WCCC Open-08 2024"]
[Site "Montesilvano"]
[Date "2024.11.25"]
[Round "10.3"]
[White "Divith Reddy Adulla"]
[Black "Ulan, Rizat"]
[Result "1-0"]
[Annotator "NA RC"]
[ECO "B22"]
[WhiteElo "1784"]
[BlackElo "1783"]
[PlyCount "129"]
[EventDate "2024.11.18"]
[EventType "swiss"]
[EventCountry "ITA"]
[SourceTitle "playchess.com"]
[Source "ChessBase"]
[SourceQuality "1"]
[TimeControl "5400+30"]

1. e4 {[%emt 0:00:01]} c5 {[%emt 0:00:10]} 2. c3 {[%emt 0:00:05]} Nf6 {[%emt 0:00:05]} 3. e5 {[%emt 0:00:03]} Nd5 {[%emt 0:00:06]} 4. d4 {[%emt 0:00:05]} cxd4 {[%emt 0:00:07]} 5. Nf3 {[%emt 0:00:04]} Nc6 {[%emt 0:00:10]} 6. cxd4 {[%emt 0:00:08]} d6 {[%emt 0:00:03]} 7. Bc4 {[%emt 0:00:07]} Nb6 {[%emt 0:00:06]} 8. Bb5 {[%emt 0:00:05]} dxe5 {[%emt 0:00:08]} 9. Nxe5 {[%emt 0:00:05]} Bd7 {[%emt 0:00:05]} 10. Nxd7 {[%emt 0:00:07]} Qxd7 {[%emt 0:00:02]} 11. Nc3 {[%emt 0:00:07]} Rd8 {[%emt 0:00:03]} 12. Qf3 {[%emt 0:03:06]} e6 {[%emt 0:10:35]} 13. O-O {[%emt 0:02:11]} Be7 {[%emt 0:01:27]} 14. Be3 {[%emt 0:02:11]} a6 {[%emt 0:03:23]} 15. Bxc6 {[%emt 0:00:50]} Qxc6 {[%emt 0:00:06]} 16. Qg4 {[%emt 0:01:40]} g6 {[%emt 0:15:48]} 17. Bh6 {[%emt 0:02:16]} Nd5 {[%emt 0:04:17]} 18. Rac1 {[%emt 1:26:19]} Nxc3 {[%emt 0:16:19]} 19. Rxc3 {[%emt 0:00:00]} Qd5 {[%emt 0:00:05]} 20. Bg7 {[%emt 0:00:00]} Rg8 {[%emt 0:00:05]} 21. Be5 {[%emt 0:00:00]} h5 {[%emt 0:04:46]} 22. Qe2 {[%emt 0:00:00]} f6 {[%emt 0:01:07]} 23. Bg3 {[%emt 0:00:00]} Kf7 {[%emt 0:00:06]} 24. Re1 {[%emt 0:00:00]} Rc8 {[%emt 0:03:10]} 25. Rf3 {[%emt 0:00:00]} Rc6 {[%emt 0:08:01]} 26. Qd2 {[%emt 0:00:00]} Kg7 {[%emt 0:02:56]} 27. h4 {[%emt 0:00:00]} Rd8 {[%emt 0:01:26]} 28. Rfe3 {[%emt 0:00:00]} Kf7 {[%emt 0:09:20]} 29. Rb3 {[%emt 0:00:00]} b5 {[%emt 0:00:44]} 30. Qh6 {[%emt 0:00:00]} Bf8 {[%emt 0:00:09]} 31. Qe3 {[%emt 0:00:00]} Qxd4 {[%emt 0:00:31]} 32. Qf3 {[%emt 0:00:00]} Qd5 {[%emt 0:00:09]} 33. Qe2 {[%emt 0:00:00]} Qd2 {[%emt 0:04:34]} 34. Qe4 {[%emt 0:00:00]} Qd5 {[%emt 0:02:14]} 35. Qb1 {[%emt 0:00:00]} Bh6 {[%emt 0:03:34]} 36. Rf3 {[%emt 0:00:00]} Kg7 {[%emt 0:02:12]} 37. b3 {[%emt 0:00:00]} Qd2 {[%emt 0:00:09]} 38. Qe4 {[%emt 0:00:00]} Qd5 {[%emt 0:03:00]} 39. Qb1 {[%emt 0:00:00]} e5 {[%emt 0:01:19]} 40. Bh2 {[%emt 0:00:00]} Rc1 {[%emt 0:01:31]} 41. Rxc1 {[%emt 0:00:00]} Bxc1 {[%emt 0:00:05]} 42. Bg3 {[%emt 0:00:00]} Bd2 {[%emt 0:01:08]} 43. Qb2 {[%emt 0:00:00]} Bb4 {[%emt 0:02:49]} 44. Kh2 {[%emt 0:00:00]} Qd1 {[%emt 0:00:20]} 45. Bxe5 {[%emt 0:00:00]} Rd2 {[%emt 0:01:15]} 46. Rxf6 {[%emt 0:00:00]} Kh7 {[%emt 0:00:49]} 47. Qa1 {[%emt 0:14:30]} Qxa1 {[%emt 0:01:37]} 48. Bxa1 {[%emt 0:00:00]} Rxa2 {[%emt 0:00:04]} 49. Bd4 {[%emt 0:00:00]} Rd2 {[%emt 0:01:56]} 50. Be5 {[%emt 0:00:00]} Rd5 {[%emt 0:00:05]} 51. f4 {[%emt 0:00:00]} a5 {[%emt 0:00:42]} 52. Rf7+ {[%emt 0:00:00]} Kg8 {[%emt 0:00:03]} 53. Rg7+ {[%emt 0:00:00]} Kf8 {[%emt 0:00:03]} 54. Rxg6 {[%emt 0:00:00]} Bc5 {[%emt 0:00:32]} 55. Rg5 {[%emt 0:00:00]} Kf7 {[%emt 0:00:27]} 56. Rxh5 {[%emt 0:00:00]} Be3 {[%emt 0:01:47]} 57. Rf5+ {[%emt 0:00:00]} Kg8 {[%emt 0:00:18]} 58. Rf6 {[%emt 0:00:00]} Rd3 {[%emt 0:00:44]} 59. Ra6 {[%emt 0:00:00]} Bd2 {[%emt 0:00:05]} 60. Ra7 {[%emt 0:00:00]} Rxb3 {[%emt 0:01:01]} 61. h5 {[%emt 0:00:00]} Be1 {[%emt 0:00:17]} 62. Rg7+ {[%emt 0:00:00]} Kf8 {[%emt 0:00:15]} 63. h6 {[%emt 0:00:00]} Bd2 {[%emt 0:00:27]} 64. Bd6+ {[%emt 0:00:00]} Ke8 {[%emt 0:00:07]} 65. h7 {[%emt 0:00:00]} 1-0

[Event "FIDE WCCC Open-08 2024"]
[Site "Montesilvano"]
[Date "2024.11.25"]
[Round "10.4"]
[White "Elemes, Nurmukhamed"]
[Black "Protopopescu, Luca"]
[Result "1-0"]
[Annotator "NA RC"]
[ECO "E32"]
[WhiteElo "1735"]
[BlackElo "1818"]
[PlyCount "79"]
[EventDate "2024.11.18"]
[EventType "swiss"]
[EventCountry "ITA"]
[SourceTitle "playchess.com"]
[Source "ChessBase"]
[SourceQuality "1"]
[TimeControl "5400+30"]

1. d4 {[%emt 0:00:02]} f5 {[%emt 0:00:07]} 2. c4 {[%emt 0:00:10]} b6 {[%emt 0:00:25]} 3. Nf3 {[%emt 0:00:33]} Bb7 {[%emt 0:00:07]} 4. g3 {[%emt 0:01:13]} e6 {[%emt 0:00:46]} 5. Bg2 {[%emt 0:00:57]} Bb4+ {[%emt 0:00:20]} 6. Nbd2 {[%emt 0:03:27]} Nf6 {[%emt 0:00:44]} 7. O-O {[%emt 0:01:14]} O-O {[%emt 0:00:49]} 8. a3 {[%emt 0:04:20]} Be7 {[%emt 0:00:34]} 9. b4 {[%emt 0:01:07]} a5 {[%emt 0:00:16]} 10. b5 {[%emt 0:00:57]} d6 {[%emt 0:01:52]} 11. d5 {[%emt 0:01:22]} exd5 {[%emt 0:06:23]} 12. Nd4 {[%emt 0:00:11]} Qc8 {[%emt 0:01:51]} 13. cxd5 {[%emt 0:00:23]} Rf7 {[%emt 0:04:47]} 14. Bh3 {[%emt 0:05:30]} Bxd5 {[%emt 0:07:05]} 15. Bxf5 {[%emt 0:00:44]} Qe8 {[%emt 0:01:29]} 16. e4 {[%emt 0:01:12]} g6 {[%emt 0:01:15]} 17. exd5 {[%emt 0:00:48]} gxf5 {[%emt 0:00:25]} 18. Nxf5 {[%emt 0:00:23]} Bf8 {[%emt 0:00:33]} 19. Bb2 {[%emt 0:02:45]} Qxb5 {[%emt 0:01:44]} 20. Bxf6 {[%emt 0:00:39]} Rxf6 {[%emt 0:00:26]} 21. Qg4+ {[%emt 0:00:06]} Rg6 {[%emt 0:00:38]} 22. Qf3 {[%emt 0:03:48]} Qb2 {[%emt 0:03:08]} 23. Ne4 {[%emt 0:05:07]} Nd7 {[%emt 0:05:58]} 24. Nh4 {[%emt 0:04:48]} Rg7 {[%emt 0:07:00]} 25. Rac1 {[%emt 0:05:35]} Nc5 {[%emt 0:13:24]} 26. Nf6+ {[%emt 0:03:59]} Kh8 {[%emt 0:00:31]} 27. Nh5 {[%emt 0:06:17]} Rg5 {[%emt 0:01:03]} 28. Qf7 {[%emt 0:02:31]} Qe5 {[%emt 0:02:36]} 29. Nf3 {[%emt 0:01:23]} Qf5 {[%emt 0:03:54]} 30. Nxg5 {[%emt 0:00:09]} Qxg5 {[%emt 0:01:23]} 31. Rce1 {[%emt 0:04:02]} Nd3 {[%emt 0:02:25]} 32. Re8 {[%emt 0:00:51]} Rxe8 {[%emt 0:00:56]} 33. Qxe8 {[%emt 0:00:10]} Qf5 {[%emt 0:00:38]} 34. f3 {[%emt 0:02:54]} Ne5 {[%emt 0:01:15]} 35. g4 {[%emt 0:00:45]} Nxg4 {[%emt 0:02:21]} 36. fxg4 {[%emt 0:00:09]} Qxg4+ {[%emt 0:00:06]} 37. Ng3 {[%emt 0:00:05]} Qd4+ {[%emt 0:00:12]} 38. Kg2 {[%emt 0:00:13]} Qxd5+ {[%emt 0:00:14]} 39. Ne4 {[%emt 0:00:05]} Qa2+ {[%emt 0:00:48]} 40. Kh1 {[%emt 0:00:09]} 1-0

[Event "FIDE WCCC Open-08 2024"]
[Site "Montesilvano"]
[Date "2024.11.25"]
[Round "10.5"]
[White "Pham, Han Nam"]
[Black "Meiyazhagan, Kaviinayan"]
[Result "1-0"]
[Annotator "NA RC"]
[ECO "A01"]
[WhiteElo "1912"]
[BlackElo "1707"]
[PlyCount "65"]
[EventDate "2024.11.18"]
[EventType "swiss"]
[EventCountry "ITA"]
[SourceTitle "playchess.com"]
[Source "ChessBase"]
[SourceQuality "1"]
[TimeControl "5400+30"]

1. b3 {[%emt 0:00:38]} e5 {[%emt 0:00:25]} 2. Bb2 {[%emt 0:02:08]} Nc6 {[%emt 0:00:46]} 3. Nf3 {[%emt 0:00:51]} d6 {[%emt 0:10:15]} 4. c4 {[%emt 0:01:00]} Nf6 {[%emt 0:01:42]} 5. e3 {[%emt 0:02:44]} Be7 {[%emt 0:01:22]} 6. d4 {[%emt 0:02:00]} exd4 {[%emt 0:01:55]} 7. exd4 {[%emt 0:00:40]} O-O {[%emt 0:06:44]} 8. Be2 {[%emt 0:00:57]} Re8 {[%emt 0:03:11]} 9. O-O {[%emt 0:00:47]} d5 {[%emt 0:08:20]} 10. Nc3 {[%emt 0:02:44]} Bg4 {[%emt 0:04:21]} 11. h3 {[%emt 0:04:05]} Bh5 {[%emt 0:00:44]} 12. Ne5 {[%emt 0:05:06]} Bxe2 {[%emt 0:02:09]} 13. Nxe2 {[%emt 0:00:15]} Qd6 {[%emt 0:07:32]} 14. Ng3 {[%emt 0:10:23]} Qe6 {[%emt 0:07:50]} 15. f4 {[%emt 0:02:54]} dxc4 {[%emt 0:03:34]} 16. f5 {[%emt 0:03:07]} Qd6 {[%emt 0:01:38]} 17. bxc4 {[%emt 0:00:52]} Nxe5 {[%emt 0:01:17]} 18. dxe5 {[%emt 0:01:30]} Qb6+ {[%emt 0:00:07]} 19. Bd4 {[%emt 0:00:27]} Bc5 {[%emt 0:00:16]} 20. Rb1 {[%emt 0:05:54]} Bxd4+ {[%emt 0:01:09]} 21. Kh1 {[%emt 0:00:19]} Qc5 {[%emt 0:01:11]} 22. exf6 {[%emt 0:00:59]} Bxf6 {[%emt 0:01:45]} 23. Rxb7 {[%emt 0:01:15]} Qxc4 {[%emt 0:02:38]} 24. Nh5 {[%emt 0:03:16]} Be5 {[%emt 0:01:37]} 25. Qf3 {[%emt 0:02:50]} f6 {[%emt 0:03:39]} 26. Rfb1 {[%emt 0:45:49]} Qxa2 {[%emt 0:04:24]} 27. R7b3 {[%emt 0:00:00]} Qa5 {[%emt 0:07:04]} 28. Qg4 {[%emt 0:00:00]} g5 {[%emt 0:01:28]} 29. fxg6 {[%emt 0:00:00]} Kf8 {[%emt 0:05:28]} 30. gxh7 {[%emt 0:00:00]} Ke7 {[%emt 0:01:53]} 31. Ng7 {[%emt 0:00:00]} Kd6 {[%emt 0:03:01]} 32. Rd3+ {[%emt 0:00:00]} Kc6 {[%emt 0:05:04]} 33. Qd7+ {[%emt 0:00:00]} 1-0

[Event "FIDE WCCC Open-08 2024"]
[Site "Montesilvano"]
[Date "2024.11.25"]
[Round "10.6"]
[White "Ayaan Phutane"]
[Black "Rajabov, Abdurahmon"]
[Result "0-1"]
[Annotator "NA RC"]
[ECO "E39"]
[WhiteElo "1796"]
[BlackElo "1515"]
[PlyCount "126"]
[EventDate "2024.11.18"]
[EventType "swiss"]
[EventCountry "ITA"]
[SourceTitle "playchess.com"]
[Source "ChessBase"]
[SourceQuality "1"]
[TimeControl "5400+30"]

1. d4 {[%emt 0:00:08]} Nf6 {[%emt 0:00:05]} 2. c4 {[%emt 0:00:07]} e6 {[%emt 0:00:04]} 3. Nc3 {[%emt 0:00:07]} Bb4 {[%emt 0:00:02]} 4. Qc2 {[%emt 0:00:08]} c5 {[%emt 0:00:03]} 5. Nf3 {[%emt 0:01:03]} O-O {[%emt 0:00:14]} 6. dxc5 {[%emt 0:01:19]} Na6 {[%emt 0:00:07]} 7. a3 {[%emt 0:01:06]} Bxc3+ {[%emt 0:00:06]} 8. Qxc3 {[%emt 0:00:25]} Nxc5 {[%emt 0:00:40]} 9. Bg5 {[%emt 0:03:14]} Nfe4 {[%emt 0:00:17]} 10. Bxd8 {[%emt 0:01:08]} Nxc3 {[%emt 0:00:04]} 11. Be7 {[%emt 0:00:15]} Nb3 {[%emt 0:00:04]} 12. Bxf8 {[%emt 0:01:36]} Kxf8 {[%emt 0:00:05]} 13. bxc3 {[%emt 0:00:39]} Nxa1 {[%emt 0:00:03]} 14. e4 {[%emt 0:01:04]} b6 {[%emt 0:01:51]} 15. Nd4 {[%emt 0:06:32]} e5 {[%emt 0:00:08]} 16. Nb5 {[%emt 0:00:16]} a6 {[%emt 0:01:48]} 17. Nc7 {[%emt 0:02:13]} Rb8 {[%emt 0:00:39]} 18. Nd5 {[%emt 0:00:09]} Nc2+ {[%emt 0:00:45]} 19. Kd2 {[%emt 0:00:35]} Nxa3 {[%emt 0:00:11]} 20. Bd3 {[%emt 0:00:08]} b5 {[%emt 0:01:02]} 21. cxb5 {[%emt 0:02:50]} Nxb5 {[%emt 0:01:37]} 22. Rb1 {[%emt 0:02:16]} Rb7 {[%emt 0:00:24]} 23. c4 {[%emt 0:01:20]} Nd4 {[%emt 0:10:18]} 24. Nb6 {[%emt 0:00:25]} Rc7 {[%emt 0:00:04]} 25. Nd5 {[%emt 0:02:01]} Rb7 {[%emt 0:00:22]} 26. Nb6 {[%emt 0:00:07]} Rc7 {[%emt 0:00:07]} 27. Ke3 {[%emt 0:01:35]} Bb7 {[%emt 0:03:49]} 28. c5 {[%emt 0:01:32]} Ke7 {[%emt 0:01:49]} 29. Nc4 {[%emt 0:00:31]} Nb5 {[%emt 0:00:22]} 30. Na5 {[%emt 0:01:43]} Bc6 {[%emt 0:00:19]} 31. Ra1 {[%emt 0:06:34]} Ra7 {[%emt 0:04:41]} 32. Nc4 {[%emt 0:01:28]} Ke6 {[%emt 0:00:35]} 33. Nb6 {[%emt 0:02:15]} Nc7 {[%emt 0:13:53]} 34. Bc4+ {[%emt 0:02:16]} Kf6 {[%emt 0:00:21]} 35. Rd1 {[%emt 0:04:17]} Ne6 {[%emt 0:00:23]} 36. Rd6 {[%emt 0:05:16]} a5 {[%emt 0:00:31]} 37. Nd5+ {[%emt 0:13:31]} Kg5 {[%emt 0:00:22]} 38. Ne7 {[%emt 0:00:31]} a4 {[%emt 0:02:07]} 39. Nxc6 {[%emt 0:04:44]} dxc6 {[%emt 0:00:08]} 40. Bxe6 {[%emt 0:04:42]} fxe6 {[%emt 0:00:24]} 41. Rd2 {[%emt 0:00:16]} Rb7 {[%emt 0:00:33]} 42. Ra2 {[%emt 0:00:42]} Rb3+ {[%emt 0:00:09]} 43. Kd2 {[%emt 0:04:26]} a3 {[%emt 0:00:05]} 44. Kc2 {[%emt 0:00:24]} Rb2+ {[%emt 0:02:04]} 45. Rxb2 {[%emt 0:00:09]} axb2 {[%emt 0:00:01]} 46. Kxb2 {[%emt 0:00:01]} Kf4 {[%emt 0:00:08]} 47. f3 {[%emt 0:00:04]} g5 {[%emt 0:01:15]} 48. Kb3 {[%emt 0:02:19]} g4 {[%emt 0:00:41]} 49. Kb4 {[%emt 0:00:10]} gxf3 {[%emt 0:00:09]} 50. gxf3 {[%emt 0:00:02]} Kxf3 {[%emt 0:00:10]} 51. Ka5 {[%emt 0:00:04]} Kxe4 {[%emt 0:00:06]} 52. Kb6 {[%emt 0:00:06]} Kd5 {[%emt 0:00:01]} 53. h4 {[%emt 0:00:19]} e4 {[%emt 0:00:04]} 54. h5 {[%emt 0:00:06]} e3 {[%emt 0:00:02]} 55. h6 {[%emt 0:00:08]} e2 {[%emt 0:00:03]} 56. Kc7 {[%emt 0:00:07]} e1=Q {[%emt 1:02:05]} 57. Kd7 {[%emt 0:00:10]} e5 {[%emt 0:00:00]} 58. Ke7 {[%emt 0:00:07]} e4 {[%emt 0:00:00]} 59. Kf7 {[%emt 0:00:03]} e3 {[%emt 0:00:00]} 60. Kg7 {[%emt 0:00:03]} e2 {[%emt 0:00:00]} 61. Kxh7 {[%emt 0:00:21]} Qg3 {[%emt 0:00:00]} 62. Kh8 {[%emt 0:00:07]} e1=B {[%emt 0:00:00]} 63. h7 {[%emt 0:00:09]} Bc3# {[%emt 0:00:00]} 0-1